fUSD/lending_fUSD_20250112
["ID","MTS","AMOUNT","RATE_DAILY","PERIOD"]
[348653189,1736700197155,2000.0,0.00022337,120]
[348653190,1736700209256,250.0,8.693e-05,2]
[348653192,1736700244813,169.37,8.951e-05,2]
[348653193,1736700270873,150.0,0.00020072,120]
[348653194,1736700307247,150.0,8.959e-05,2]
[348653195,1736700319663,885.38,8.219e-05,2]
[348653196,1736700360630,604.65888857,0.00023,120]
[348653197,1736700452274,470.35,8.692e-05,2]
[348653202,1736700591172,10000.0,0.00023,120]
[348653203,1736700606402,10000.0,0.00023,120]
[348653204,1736700609025,5000.0,8.899e-05,2]
[348653205,1736700626110,10000.0,0.00023,120]
[348653211,1736700631446,-1525.15327041,8.982e-05,2]
[348653212,1736700631457,-4180.12796239,8.982e-05,2]
[348653213,1736700631501,-301.6,8.982e-05,2]
[348653214,1736700631615,-5648.93379867,8.982e-05,2]
[348653215,1736700631627,-9205.50496853,8.982e-05,2]
[348653216,1736700631637,-250.0,8.988e-05,2]
[348653217,1736700631647,-1720.5827517,8.988e-05,2]
[348653218,1736700631657,-1000.0,8.997e-05,2]
[348653219,1736700631667,-33011.47232195,8.997e-05,2]
[348653220,1736700631677,-150.0,8.997e-05,2]
[348653221,1736700631686,-500.0,8.998e-05,2]
[348653222,1736700631695,-500.0,8.998e-05,2]
[348653223,1736700631705,-738.81,8.998e-05,2]
[348653224,1736700631715,-500.0,8.998e-05,2]
[348653225,1736700631724,-500.0,8.998e-05,2]
[348653226,1736700631735,-999.9,8.998e-05,2]
[348653227,1736700631745,-658.7,8.998e-05,2]
[348653228,1736700631757,-852.49,8.998e-05,2]
[348653229,1736700631768,-563.58,8.998e-05,2]
[348653230,1736700631777,-500.0,8.998e-05,2]
[348653231,1736700631788,-500.0,8.998e-05,2]
[348653232,1736700631799,-500.0,8.998e-05,2]
[348653233,1736700631807,-501.55671603,8.998e-05,2]
[348653234,1736700631818,-690.64,8.998e-05,2]
[348653235,1736700631828,-500.0,8.998e-05,2]
[348653236,1736700631837,-500.0,8.998e-05,2]
[348653237,1736700631847,-502.12416471,8.998e-05,2]
[348653238,1736700631858,-857.17,8.998e-05,2]
[348653239,1736700631868,-674.27,8.998e-05,2]
[348653240,1736700631877,-500.0,8.998e-05,2]
[348653241,1736700631887,-500.0,8.998e-05,2]
[348653243,1736700631900,-500.0,8.998e-05,2]
[348653245,1736700631909,-500.0,8.998e-05,2]
[348653247,1736700631919,-500.0,8.998e-05,2]
[348653249,1736700631928,-500.0,8.998e-05,2]
[348653251,1736700631937,-500.0,8.998e-05,2]
[348653253,1736700631948,-500.0,8.998e-05,2]
[348653255,1736700631958,-999.58,8.998e-05,2]
[348653257,1736700631968,-500.0,8.998e-05,2]
[348653259,1736700631977,-690.05,8.998e-05,2]
[348653261,1736700631987,-833.44,8.998e-05,2]
[348653263,1736700631996,-500.0,8.998e-05,2]
[348653265,1736700632005,-988.81,8.998e-05,2]
[348653267,1736700632014,-668.15,8.998e-05,2]
[348653269,1736700632023,-779.2,8.998e-05,2]
[348653271,1736700632032,-500.0,8.998e-05,2]
[348653273,1736700632042,-500.0,8.998e-05,2]
[348653275,1736700632051,-500.0,8.998e-05,2]
[348653276,1736700632060,-500.0,8.998e-05,2]
[348653278,1736700632069,-500.0,8.998e-05,2]
[348653280,1736700632078,-500.0,8.998e-05,2]
[348653282,1736700632088,-500.0,8.998e-05,2]
[348653284,1736700632097,-1054.74,8.998e-05,2]
[348653286,1736700632109,-500.0,8.998e-05,2]
[348653287,1736700632118,-500.0,8.998e-05,2]
[348653289,1736700632127,-500.0,8.998e-05,2]
[348653291,1736700632136,-500.0,8.998e-05,2]
[348653293,1736700632145,-500.0,8.998e-05,2]
[348653295,1736700632154,-748.93,8.998e-05,2]
[348653297,1736700632163,-312.38876339,8.998e-05,2]
[348653304,1736700632220,-187.61123661,8.998e-05,2]
[348653306,1736700632230,-269.7120049,8.998e-05,2]
[348653309,1736700632248,-230.2879951,8.998e-05,2]
[348653311,1736700632257,-500.0,8.998e-05,2]
[348653313,1736700632266,-607.63750142,8.998e-05,2]
[348653315,1736700632275,-500.0,8.998e-05,2]
[348653317,1736700632284,-500.0,8.998e-05,2]
[348653318,1736700632293,-500.0,8.998e-05,2]
[348653320,1736700632302,-500.0,8.998e-05,2]
[348653322,1736700632312,-500.0,8.998e-05,2]
[348653324,1736700632321,-500.0,8.998e-05,2]
[348653326,1736700632330,-500.0,8.998e-05,2]
[348653328,1736700632340,-500.0,8.998e-05,2]
[348653330,1736700632349,-501.80423103,8.998e-05,2]
[348653332,1736700632358,-922.61,8.998e-05,2]
[348653334,1736700632367,-500.0,8.998e-05,2]
[348653336,1736700632376,-500.0,8.998e-05,2]
[348653338,1736700632386,-429.37285989,8.998e-05,2]
[348653340,1736700632395,-501.41075334,8.998e-05,2]
[348653342,1736700632404,-500.0,8.998e-05,2]
[348653344,1736700632413,-500.0,8.998e-05,2]
[348653346,1736700632423,-500.0,8.998e-05,2]
[348653348,1736700632433,-500.0,8.998e-05,2]
[348653350,1736700632443,-364.33760799,8.998e-05,2]
[348653352,1736700632452,-584.82,8.998e-05,2]
[348653354,1736700632461,-570.92678277,8.998e-05,2]
[348653356,1736700632470,-500.0,8.998e-05,2]
[348653358,1736700632479,-500.0,8.998e-05,2]
[348653360,1736700632489,-500.0,8.998e-05,2]
[348653362,1736700632498,-500.0,8.998e-05,2]
[348653364,1736700632507,-893.62,8.998e-05,2]
[348653366,1736700632516,-500.0,8.998e-05,2]
[348653367,1736700632525,-500.0,8.998e-05,2]
[348653369,1736700632534,-500.0,8.998e-05,2]
[348653371,1736700632543,-500.0,8.998e-05,2]
[348653373,1736700632552,-500.0,8.998e-05,2]
[348653375,1736700632561,-1058.98,8.998e-05,2]
[348653378,1736700632576,-500.0,8.998e-05,2]
[348653380,1736700632590,-500.0,8.998e-05,2]
[348653382,1736700632600,-500.0,8.998e-05,2]
[348653384,1736700632609,-500.0,8.998e-05,2]
[348653386,1736700632619,-500.0,8.998e-05,2]
[348653387,1736700632628,-500.0,8.998e-05,2]
[348653389,1736700632637,-500.0,8.998e-05,2]
[348653391,1736700632647,-2993.24,8.998e-05,2]
[348653393,1736700632656,-500.0,8.998e-05,2]
[348653395,1736700632665,-500.0,8.998e-05,2]
[348653397,1736700632675,-500.0,8.998e-05,2]
[348653399,1736700632685,-500.0,8.998e-05,2]
[348653402,1736700632697,-500.0,8.998e-05,2]
[348653404,1736700632707,-1131.37,8.998e-05,2]
[348653406,1736700632716,-500.0,8.998e-05,2]
[348653408,1736700632725,-500.0,8.998e-05,2]
[348653409,1736700632735,-341.03599096,8.998e-05,2]
[348653410,1736700632744,-500.0,8.998e-05,2]
[348653411,1736700632754,-500.0,8.998e-05,2]
[348653412,1736700632763,-2622.41,8.998e-05,2]
[348653413,1736700632772,-500.0,8.998e-05,2]
[348653414,1736700632781,-500.0,8.998e-05,2]
[348653415,1736700632791,-715.88,8.998e-05,2]
[348653416,1736700632800,-500.0,8.998e-05,2]
[348653417,1736700632809,-8282.98,8.998e-05,2]
[348653418,1736700632819,-504.57216226,8.998e-05,2]
[348653419,1736700632828,-500.0,8.998e-05,2]
[348653420,1736700632837,-838.98,8.998e-05,2]
[348653421,1736700632847,-990.02671167,8.998e-05,2]
[348653422,1736700632856,-500.0,8.998e-05,2]
[348653423,1736700632866,-250.53422674,8.998e-05,2]
[348653424,1736700632876,-500.0,8.998e-05,2]
[348653425,1736700632885,-509.59231236,8.998e-05,2]
[348653426,1736700632895,-500.0,8.998e-05,2]
[348653427,1736700632904,-675.17,8.998e-05,2]
[348653428,1736700632914,-500.0,8.998e-05,2]
[348653429,1736700632925,-500.0,8.998e-05,2]
[348653430,1736700632934,-776.6,8.998e-05,2]
[348653431,1736700632944,-500.0,8.998e-05,2]
[348653432,1736700632953,-500.0,8.998e-05,2]
[348653433,1736700632963,-500.0,8.998e-05,2]
[348653434,1736700632972,-502.22281947,8.998e-05,2]
[348653435,1736700632981,-500.0,8.998e-05,2]
[348653436,1736700632990,-500.0,8.998e-05,2]
[348653437,1736700633000,-500.0,8.998e-05,2]
[348653438,1736700633010,-500.0,8.998e-05,2]
[348653439,1736700633020,-903.59,8.998e-05,2]
[348653440,1736700633030,-500.0,8.998e-05,2]
[348653441,1736700633040,-500.0,8.998e-05,2]
[348653442,1736700633050,-500.0,8.998e-05,2]
[348653443,1736700633060,-1097.27,8.998e-05,2]
[348653444,1736700633069,-500.0,8.998e-05,2]
[348653445,1736700633079,-500.0,8.998e-05,2]
[348653446,1736700633089,-612.54,8.998e-05,2]
[348653447,1736700633099,-500.0,8.998e-05,2]
[348653448,1736700633114,-500.0,8.998e-05,2]
[348653449,1736700633125,-565.39,8.998e-05,2]
[348653450,1736700633136,-502.68882185,8.998e-05,2]
[348653451,1736700633146,-501.24690409,8.998e-05,2]
[348653452,1736700633156,-2321.77,8.998e-05,2]
[348653453,1736700633166,-1025.55,8.998e-05,2]
[348653454,1736700633176,-500.0,8.998e-05,2]
[348653455,1736700633189,-500.0,8.998e-05,2]
[348653456,1736700633199,-500.0,8.998e-05,2]
[348653457,1736700633209,-500.0,8.998e-05,2]
[348653458,1736700633219,-500.0,8.998e-05,2]
[348653459,1736700633231,-2541.58,8.998e-05,2]
[348653460,1736700633241,-500.0,8.998e-05,2]
[348653461,1736700633252,-500.0,8.998e-05,2]
[348653462,1736700633262,-995.77,8.998e-05,2]
[348653463,1736700633271,-500.0,8.998e-05,2]
[348653464,1736700633281,-500.0,8.998e-05,2]
[348653465,1736700633291,-500.0,8.998e-05,2]
[348653466,1736700633301,-500.0,8.998e-05,2]
[348653467,1736700633311,-500.0,8.998e-05,2]
[348653468,1736700633321,-500.0,8.998e-05,2]
[348653469,1736700633331,-3146.03,8.998e-05,2]
[348653470,1736700633342,-500.0,8.998e-05,2]
[348653471,1736700633352,-2710.65,8.998e-05,2]
[348653472,1736700633362,-500.0,8.998e-05,2]
[348653473,1736700633371,-500.0,8.998e-05,2]
[348653474,1736700633381,-500.0,8.998e-05,2]
[348653475,1736700633391,-1355.79,8.998e-05,2]
[348653476,1736700633401,-2113.09,8.998e-05,2]
[348653477,1736700633411,-1050.88,8.998e-05,2]
[348653478,1736700633420,-500.0,8.998e-05,2]
[348653479,1736700633430,-1415.81,8.998e-05,2]
[348653480,1736700633440,-1645.06,8.998e-05,2]
[348653481,1736700633449,-520.74,8.998e-05,2]
[348653482,1736700633459,-1033.91,8.998e-05,2]
[348653483,1736700633469,-500.0,8.998e-05,2]
[348653484,1736700633479,-503.73088612,8.998e-05,2]
[348653485,1736700633489,-500.0,8.998e-05,2]
[348653486,1736700633498,-1289.53,8.998e-05,2]
[348653487,1736700633508,-836.1,8.998e-05,2]
[348653488,1736700633518,-501.5453573,8.998e-05,2]
[348653489,1736700633528,-969.41,8.998e-05,2]
[348653490,1736700633538,-500.0,8.998e-05,2]
[348653491,1736700633548,-500.0,8.998e-05,2]
[348653492,1736700633558,-500.0,8.998e-05,2]
[348653493,1736700633568,-3093.34,8.998e-05,2]
[348653494,1736700633577,-500.0,8.998e-05,2]
[348653495,1736700633587,-594.39,8.998e-05,2]
[348653496,1736700633596,-500.0,8.998e-05,2]
[348653497,1736700633606,-500.0,8.998e-05,2]
[348653498,1736700633615,-191.68839425,8.998e-05,2]
[348653499,1736700633624,-500.0,8.998e-05,2]
[348653500,1736700633634,-500.0,8.998e-05,2]
[348653501,1736700633644,-856.24,8.998e-05,2]
[348653502,1736700633654,-500.0,8.998e-05,2]
[348653503,1736700633664,-2376.04,8.998e-05,2]
[348653504,1736700633673,-500.0,8.998e-05,2]
[348653505,1736700633683,-611.54458633,8.998e-05,2]
[348653506,1736700633693,-500.0,8.998e-05,2]
[348653507,1736700633703,-500.0,8.998e-05,2]
[348653508,1736700633713,-973.37,8.998e-05,2]
[348653509,1736700633723,-500.0,8.998e-05,2]
[348653510,1736700633732,-500.0,8.998e-05,2]
[348653511,1736700633742,-486.32897422,8.998e-05,2]
[348653512,1736700633751,-500.0,8.998e-05,2]
[348653513,1736700633761,-500.0,8.998e-05,2]
[348653514,1736700633770,-524.5,8.998e-05,2]
[348653515,1736700633780,-500.0,8.998e-05,2]
[348653516,1736700633789,-500.0,8.998e-05,2]
[348653517,1736700633799,-500.0,8.998e-05,2]
[348653518,1736700633808,-270.62880808,8.998e-05,2]
[348653519,1736700633817,-1899.09,8.998e-05,2]
[348653520,1736700633827,-500.0,8.998e-05,2]
[348653521,1736700633837,-708.5,8.998e-05,2]
[348653522,1736700633846,-500.0,8.998e-05,2]
[348653523,1736700633858,-1299.49,8.998e-05,2]
[348653524,1736700633868,-1088.98,8.998e-05,2]
[348653525,1736700633878,-260.19932949,8.998e-05,2]
[348653526,1736700633888,-500.0,8.998e-05,2]
[348653527,1736700633897,-500.0,8.998e-05,2]
[348653528,1736700633907,-925.99,8.998e-05,2]
[348653529,1736700633917,-500.0,8.998e-05,2]
[348653530,1736700633928,-500.0,8.998e-05,2]
[348653531,1736700633938,-3185.36,8.998e-05,2]
[348653532,1736700633948,-500.0,8.998e-05,2]
[348653533,1736700633958,-640.31,8.998e-05,2]
[348653534,1736700633968,-622.45,8.998e-05,2]
[348653535,1736700633978,-500.0,8.998e-05,2]
[348653536,1736700633987,-287.47370311,8.998e-05,2]
[348653537,1736700633996,-266.23399173,8.998e-05,2]
[348653538,1736700634007,-1827.76,8.998e-05,2]
[348653539,1736700634016,-500.0,8.998e-05,2]
[348653540,1736700634027,-500.0,8.998e-05,2]
[348653541,1736700634037,-500.0,8.998e-05,2]
[348653542,1736700634046,-500.0,8.998e-05,2]
[348653543,1736700634056,-537.76163464,8.998e-05,2]
[348653544,1736700634065,-606.95,8.998e-05,2]
[348653545,1736700634075,-545.89,8.998e-05,2]
[348653546,1736700634084,-500.0,8.998e-05,2]
[348653547,1736700634094,-501.10658168,8.998e-05,2]
[348653548,1736700634107,-500.0,8.998e-05,2]
[348653549,1736700634118,-786.14,8.998e-05,2]
[348653550,1736700634128,-501.93483655,8.998e-05,2]
[348653551,1736700634138,-500.0,8.998e-05,2]
[348653552,1736700634147,-500.81245417,8.998e-05,2]
[348653553,1736700634157,-500.0,8.998e-05,2]
[348653554,1736700634167,-500.0,8.999e-05,2]
[348653555,1736700634181,-500.0,8.999e-05,2]
[348653556,1736700634191,-500.0,8.999e-05,2]
[348653557,1736700634202,-542.40481348,8.999e-05,2]
[348653558,1736700634211,-500.0,8.999e-05,2]
[348653559,1736700634221,-500.0,8.999e-05,2]
[348653560,1736700634232,-500.0,8.999e-05,2]
[348653561,1736700634242,-500.6679053,8.999e-05,2]
[348653562,1736700634252,-500.0,8.999e-05,2]
[348653563,1736700634262,-287.76703,8.999e-05,2]
[348653564,1736700634271,-500.0,8.999e-05,2]
[348653565,1736700634280,-500.0,8.999e-05,2]
[348653566,1736700634291,-502.20081016,8.999e-05,2]
[348653567,1736700634301,-500.0,8.999e-05,2]
[348653568,1736700634311,-500.0,8.999e-05,2]
[348653569,1736700634321,-500.0,8.999e-05,2]
[348653570,1736700634331,-501.37987764,8.999e-05,2]
[348653571,1736700634341,-500.0,8.999e-05,2]
[348653572,1736700634350,-500.0,8.999e-05,2]
[348653573,1736700634360,-500.0,8.999e-05,2]
[348653574,1736700634370,-500.0,8.999e-05,2]
[348653575,1736700634380,-501.42788874,8.999e-05,2]
[348653576,1736700634390,-500.0,8.999e-05,2]
[348653577,1736700634400,-500.0,8.999e-05,2]
[348653578,1736700634410,-500.0,8.999e-05,2]
[348653579,1736700634420,-500.0,8.999e-05,2]
[348653580,1736700634432,-500.0,8.999e-05,2]
[348653581,1736700634442,-500.0,8.999e-05,2]
[348653582,1736700634452,-730.13,8.999e-05,2]
[348653583,1736700634462,-500.0,8.999e-05,2]
[348653584,1736700634471,-500.0,8.999e-05,2]
[348653585,1736700634481,-500.0,8.999e-05,2]
[348653586,1736700634492,-500.0,8.999e-05,2]
[348653587,1736700634502,-1651.99,8.999e-05,2]
[348653588,1736700634511,-500.0,8.999e-05,2]
[348653589,1736700634521,-507.92713779,8.999e-05,2]
[348653590,1736700634531,-500.0,8.999e-05,2]
[348653591,1736700634540,-500.0,8.999e-05,2]
[348653592,1736700634550,-502.30205745,8.999e-05,2]
[348653593,1736700634559,-500.0,8.999e-05,2]
[348653594,1736700634569,-500.0,8.999e-05,2]
[348653595,1736700634578,-500.0,8.999e-05,2]
[348653596,1736700634588,-500.0,8.999e-05,2]
[348653597,1736700634597,-500.0,8.999e-05,2]
[348653598,1736700634607,-500.0,8.999e-05,2]
[348653599,1736700634616,-500.0,8.999e-05,2]
[348653600,1736700634625,-500.0,8.999e-05,2]
[348653601,1736700634635,-419.65175733,8.999e-05,2]
[348653602,1736700634644,-500.0,8.999e-05,2]
[348653603,1736700634654,-1264.25,8.999e-05,2]
[348653604,1736700634663,-500.0,8.999e-05,2]
[348653605,1736700634675,-500.0,8.999e-05,2]
[348653606,1736700634684,-500.0,8.999e-05,2]
[348653607,1736700634694,-500.0,8.999e-05,2]
[348653608,1736700634703,-501.33627234,8.999e-05,2]
[348653609,1736700634713,-502.79720333,8.999e-05,2]
[348653610,1736700634722,-500.0,8.999e-05,2]
[348653611,1736700634732,-500.0,8.999e-05,2]
[348653612,1736700634741,-500.0,8.999e-05,2]
[348653613,1736700634751,-978.875677,8.999e-05,2]
[348653614,1736700634760,-500.0,8.999e-05,2]
[348653615,1736700634769,-507.30507255,8.999e-05,2]
[348653616,1736700634779,-500.0,8.999e-05,2]
[348653617,1736700634790,-500.0,8.999e-05,2]
[348653618,1736700634807,-500.0,8.999e-05,2]
[348653619,1736700634817,-500.0,8.999e-05,2]
[348653620,1736700634827,-500.5197249,8.999e-05,2]
[348653621,1736700634836,-159.485229,8.999e-05,2]
[348653622,1736700634846,-500.0,8.999e-05,2]
[348653623,1736700634855,-500.0,8.999e-05,2]
[348653624,1736700634867,-157.421382,8.999e-05,2]
[348653625,1736700634878,-500.0,8.999e-05,2]
[348653626,1736700635172,-501.11596315,8.999e-05,2]
[348653627,1736700635183,-500.0,8.999e-05,2]
[348653628,1736700635192,-500.0,8.999e-05,2]
[348653629,1736700635201,-500.0,8.999e-05,2]
[348653630,1736700635211,-500.0,8.999e-05,2]
[348653631,1736700635221,-500.0,8.999e-05,2]
[348653632,1736700635231,-500.0,8.999e-05,2]
[348653633,1736700635241,-500.0,8.999e-05,2]
[348653634,1736700635250,-500.0,8.999e-05,2]
[348653635,1736700635260,-500.0,8.999e-05,2]
[348653636,1736700635269,-500.0,8.999e-05,2]
[348653637,1736700635279,-500.0,8.999e-05,2]
[348653638,1736700635291,-3861.07,8.999e-05,2]
[348653639,1736700635301,-500.0,8.999e-05,2]
[348653640,1736700635311,-500.0,8.999e-05,2]
[348653641,1736700635321,-500.0,8.999e-05,2]
[348653642,1736700635332,-941.388041,8.999e-05,2]
[348653643,1736700635342,-507.39144171,8.999e-05,2]
[348653644,1736700635351,-500.0,8.999e-05,2]
[348653645,1736700635360,-500.0,8.999e-05,2]
[348653646,1736700635370,-500.0,8.999e-05,2]
[348653647,1736700635379,-944.82,8.999e-05,2]
[348653648,1736700635389,-500.0,8.999e-05,2]
[348653649,1736700635398,-500.0,8.999e-05,2]
[348653650,1736700635408,-500.0,8.999e-05,2]
[348653651,1736700635418,-500.0,8.999e-05,2]
[348653652,1736700635428,-637.36997496,8.999e-05,2]
[348653653,1736700635438,-500.0,8.999e-05,2]
[348653654,1736700635449,-155.371199,8.999e-05,2]
[348653655,1736700635459,-500.0,8.999e-05,2]
[348653656,1736700635469,-500.0,8.999e-05,2]
[348653657,1736700635480,-500.0,8.999e-05,2]
[348653658,1736700635490,-1010.28,8.999e-05,2]
[348653659,1736700635500,-500.0,8.999e-05,2]
[348653660,1736700635510,-500.0,8.999e-05,2]
[348653661,1736700635520,-500.0,8.999e-05,2]
[348653662,1736700635530,-597.28,8.999e-05,2]
[348653663,1736700635539,-500.0,8.999e-05,2]
[348653664,1736700635553,-500.0,8.999e-05,2]
[348653665,1736700635563,-500.0,8.999e-05,2]
[348653666,1736700635573,-500.0,8.999e-05,2]
[348653667,1736700635583,-506.27399574,8.999e-05,2]
[348653668,1736700635593,-500.0,8.999e-05,2]
[348653669,1736700635603,-500.0,8.999e-05,2]
[348653670,1736700635612,-500.0,8.999e-05,2]
[348653671,1736700635622,-500.0,8.999e-05,2]
[348653672,1736700635632,-500.0,8.999e-05,2]
[348653673,1736700635641,-500.0,8.999e-05,2]
[348653674,1736700635650,-500.0,8.999e-05,2]
[348653675,1736700635659,-500.0,8.999e-05,2]
[348653676,1736700635669,-978.99,8.999e-05,2]
[348653677,1736700635678,-500.0,8.999e-05,2]
[348653678,1736700635688,-500.0,8.999e-05,2]
[348653679,1736700635697,-500.0,8.999e-05,2]
[348653680,1736700635706,-500.0,8.999e-05,2]
[348653681,1736700635716,-574.1,8.999e-05,2]
[348653682,1736700635725,-500.0,8.999e-05,2]
[348653683,1736700635734,-500.0,8.999e-05,2]
[348653684,1736700635743,-500.0,8.999e-05,2]
[348653685,1736700635753,-500.0,8.999e-05,2]
[348653686,1736700635763,-500.0,8.999e-05,2]
[348653687,1736700635772,-500.0,8.999e-05,2]
[348653688,1736700635782,-500.0,8.999e-05,2]
[348653689,1736700635791,-503.33293654,8.999e-05,2]
[348653690,1736700635800,-155.371198,8.999e-05,2]
[348653691,1736700635809,-500.0,8.999e-05,2]
[348653692,1736700635819,-500.0,8.999e-05,2]
[348653693,1736700635829,-500.0,8.999e-05,2]
[348653694,1736700635839,-500.0,8.999e-05,2]
[348653695,1736700635849,-500.0,8.999e-05,2]
[348653696,1736700635858,-500.0,8.999e-05,2]
[348653697,1736700635867,-500.0,8.999e-05,2]
[348653698,1736700635877,-500.0,8.999e-05,2]
[348653699,1736700635886,-790.29,8.999e-05,2]
[348653700,1736700635897,-500.0,8.999e-05,2]
[348653701,1736700635908,-500.0,8.999e-05,2]
[348653702,1736700635918,-500.0,8.999e-05,2]
[348653703,1736700635928,-500.0,8.999e-05,2]
[348653704,1736700635937,-502.17153589,8.999e-05,2]
[348653705,1736700635947,-500.0,8.999e-05,2]
[348653706,1736700635957,-500.0,8.999e-05,2]
[348653707,1736700635968,-508.12876591,8.999e-05,2]
[348653708,1736700635978,-500.0,8.999e-05,2]
[348653709,1736700635989,-500.0,8.999e-05,2]
[348653710,1736700635998,-500.0,8.999e-05,2]
[348653711,1736700636007,-500.0,8.999e-05,2]
[348653712,1736700636017,-500.0,8.999e-05,2]
[348653713,1736700636027,-500.0,8.999e-05,2]
[348653714,1736700636037,-168.246032,8.999e-05,2]
[348653715,1736700636047,-500.97353854,8.999e-05,2]
[348653716,1736700636056,-826.32,8.999e-05,2]
[348653717,1736700636067,-500.0,8.999e-05,2]
[348653718,1736700636078,-500.0,8.999e-05,2]
[348653719,1736700636090,-502.65826831,8.999e-05,2]
[348653720,1736700636100,-500.0,8.999e-05,2]
[348653721,1736700636113,-500.36818709,8.999e-05,2]
[348653722,1736700636122,-816.75,8.999e-05,2]
[348653723,1736700636132,-500.0,8.999e-05,2]
[348653724,1736700636141,-502.93144659,8.999e-05,2]
[348653725,1736700636151,-500.0,8.999e-05,2]
[348653726,1736700636161,-500.0,8.999e-05,2]
[348653727,1736700636172,-500.0,8.999e-05,2]
[348653728,1736700636182,-588.58690907,8.999e-05,2]
[348653729,1736700636191,-500.0,8.999e-05,2]
[348653730,1736700636201,-500.0,8.999e-05,2]
[348653731,1736700636211,-500.0,8.999e-05,2]
[348653732,1736700636220,-625.83,8.999e-05,2]
[348653733,1736700636230,-500.0,8.999e-05,2]
[348653734,1736700636240,-504.42546372,8.999e-05,2]
[348653735,1736700636249,-501.73126271,8.999e-05,2]
[348653736,1736700636259,-500.0,8.999e-05,2]
[348653737,1736700636268,-655.22,8.999e-05,2]
[348653738,1736700636278,-500.0,8.999e-05,2]
[348653739,1736700636287,-503.32887218,8.999e-05,2]
[348653740,1736700636297,-500.0,8.999e-05,2]
[348653741,1736700636306,-500.62304385,8.999e-05,2]
[348653742,1736700636316,-156.997619,8.999e-05,2]
[348653743,1736700636325,-500.0,8.999e-05,2]
[348653744,1736700636335,-500.0,8.999e-05,2]
[348653745,1736700636344,-3719.64,8.999e-05,2]
[348653746,1736700636354,-763.25,8.999e-05,2]
[348653747,1736700636363,-500.0,8.999e-05,2]
[348653748,1736700636372,-659.3,8.999e-05,2]
[348653749,1736700636382,-500.0,8.999e-05,2]
[348653750,1736700636391,-523.39215435,8.999e-05,2]
[348653751,1736700636405,-168.246029,8.999e-05,2]
[348653752,1736700636415,-500.0,8.999e-05,2]
[348653753,1736700636424,-501.48334771,8.999e-05,2]
[348653754,1736700636435,-500.0,8.999e-05,2]
[348653755,1736700636444,-500.0,8.999e-05,2]
[348653756,1736700636454,-500.0,8.999e-05,2]
[348653757,1736700636464,-500.0,8.999e-05,2]
[348653758,1736700636475,-500.0,8.999e-05,2]
[348653759,1736700636484,-500.0,8.999e-05,2]
[348653760,1736700636494,-500.0,8.999e-05,2]
[348653761,1736700636504,-500.0,8.999e-05,2]
[348653762,1736700636514,-500.0,8.999e-05,2]
[348653763,1736700636524,-500.0,8.999e-05,2]
[348653764,1736700636534,-500.0,8.999e-05,2]
[348653765,1736700636543,-155.371198,8.999e-05,2]
[348653766,1736700636554,-500.0,8.999e-05,2]
[348653767,1736700636565,-500.0,8.999e-05,2]
[348653768,1736700636576,-500.0,8.999e-05,2]
[348653769,1736700636587,-500.0,8.999e-05,2]
[348653770,1736700636598,-500.0,8.999e-05,2]
[348653771,1736700636608,-500.0,8.999e-05,2]
[348653772,1736700636618,-500.0,8.999e-05,2]
[348653773,1736700636628,-500.0,8.999e-05,2]
[348653774,1736700636638,-500.0,8.999e-05,2]
[348653775,1736700636648,-516.68,8.999e-05,2]
[348653776,1736700636658,-500.0,8.999e-05,2]
[348653777,1736700636668,-500.0,8.999e-05,2]
[348653778,1736700636679,-500.0,8.999e-05,2]
[348653779,1736700636688,-78.98307881,8.999e-05,2]
[348653780,1736700636715,-421.01692119,8.999e-05,2]
[348653781,1736700636724,-500.0,8.999e-05,2]
[348653782,1736700636733,-500.0,8.999e-05,2]
[348653783,1736700636743,-500.0,8.999e-05,2]